[Event "Late-Titled-Tuesday-Blitz-September-12-2023"]
[Site "Chess.com"]
[Date "2023.09.12"]
[Round "5"]
[White "MichalL9"]
[Black "jcmesafischer"]
[Result "0-1"]
[WhiteElo "2194"]
[BlackElo "2372"]
[TimeControl "180+1"]
[EndTime "14:52:52 PDT"]
[Termination "jcmesafischer won by resignation"]

1. Nf3 {[%clk 0:02:53.2]} 1... Nf6 {[%clk 0:02:41.2]} 2. g3 {[%clk 0:02:48.7]}
2... e6 {[%clk 0:02:39.6]} 3. Bg2 {[%clk 0:02:33.1]} 3... Be7 {[%clk 0:02:35]}
4. c4 {[%clk 0:02:31.9]} 4... O-O {[%clk 0:02:33.3]} 5. b3 {[%clk 0:02:31.4]}
5... d5 {[%clk 0:02:33.3]} 6. Bb2 {[%clk 0:02:30.5]} 6... c5 {[%clk 0:02:33.7]}
7. O-O {[%clk 0:02:29.4]} 7... d4 {[%clk 0:02:34]} 8. e3 {[%clk 0:02:28.7]} 8...
Nc6 {[%clk 0:02:34.1]} 9. exd4 {[%clk 0:02:27.4]} 9... cxd4 {[%clk 0:02:35]} 10.
d3 {[%clk 0:02:23.5]} 10... e5 {[%clk 0:02:32.7]} 11. Re1 {[%clk 0:02:23.1]}
11... Nd7 {[%clk 0:02:32.1]} 12. Na3 {[%clk 0:02:22.9]} 12... Bb4 {[%clk
0:02:27.4]} 13. Re2 {[%clk 0:02:11.4]} 13... Nc5 {[%clk 0:02:23.8]} 14. Nc2
{[%clk 0:02:10.8]} 14... Bc3 {[%clk 0:02:23.7]} 15. Rb1 {[%clk 0:02:00.3]} 15...
Bxb2 {[%clk 0:02:22.9]} 16. Rxb2 {[%clk 0:02:01.2]} 16... Re8 {[%clk 0:02:19.3]}
17. Nfe1 {[%clk 0:01:44.8]} 17... f5 {[%clk 0:02:11.9]} 18. Rb1 {[%clk
0:01:13.5]} 18... a5 {[%clk 0:01:42.2]} 19. a3 {[%clk 0:01:09.2]} 19... e4
{[%clk 0:01:35.5]} 20. dxe4 {[%clk 0:00:44.6]} 20... d3 {[%clk 0:01:22.5]} 21.
Rd2 {[%clk 0:00:43.5]} 21... dxc2 {[%clk 0:01:00.8]} 22. Nxc2 {[%clk 0:00:42.5]}
22... Qe7 {[%clk 0:00:57.8]} 23. Ne3 {[%clk 0:00:23.2]} 23... Nxe4 {[%clk
0:00:47.2]} 24. Nd5 {[%clk 0:00:20.5]} 24... Qf7 {[%clk 0:00:44.1]} 25. Bxe4
{[%clk 0:00:20]} 25... fxe4 {[%clk 0:00:43.7]} 26. b4 {[%clk 0:00:17.8]} 26...
Ne5 {[%clk 0:00:43]} 27. Kg2 {[%clk 0:00:16.3]} 27... Nxc4 {[%clk 0:00:42.4]}
28. Rd4 {[%clk 0:00:15.4]} 28... Be6 {[%clk 0:00:41.6]} 29. Nf4 {[%clk
0:00:13.2]} 29... e3 {[%clk 0:00:41.5]} 30. bxa5 {[%clk 0:00:08.8]} 30... exf2
{[%clk 0:00:40.9]} 31. Qf3 {[%clk 0:00:05.3]} 31... Ne3+ {[%clk 0:00:32.5]} 32.
Kh1 {[%clk 0:00:04]} 32... Bd5 {[%clk 0:00:28.7]} 33. Rxd5 {[%clk 0:00:02.4]}
33... Nxd5 {[%clk 0:00:26.3]} 34. Qxf2 {[%clk 0:00:01.7]} 34... Nxf4 {[%clk
0:00:25.8]} 35. gxf4 {[%clk 0:00:02.6]} 35... Qd5+ {[%clk 0:00:24.1]} 36. Qg2
{[%clk 0:00:02.3]} 36... Qxg2+ {[%clk 0:00:23]} 0-1

[Event "Late-Titled-Tuesday-Blitz-September-12-2023"]
[Site "Chess.com"]
[Date "2023.09.12"]
[Round "5"]
[White "DefiantChair"]
[Black "newyorkmouse"]
[Result "1-0"]
[WhiteElo "2669"]
[BlackElo "2463"]
[TimeControl "180+1"]
[EndTime "14:52:59 PDT"]
[Termination "DefiantChair won by checkmate"]

1. e4 {[%clk 0:03:00.9]} 1... c6 {[%clk 0:02:54.6]} 2. d4 {[%clk 0:03:01]} 2...
Na6 {[%clk 0:02:54.8]} 3. Nc3 {[%clk 0:03:00.2]} 3... Nc7 {[%clk 0:02:52.5]} 4.
f4 {[%clk 0:03:00]} 4... d5 {[%clk 0:02:52.5]} 5. e5 {[%clk 0:03:00.3]} 5... g6
{[%clk 0:02:51.6]} 6. Nf3 {[%clk 0:03:00.2]} 6... h5 {[%clk 0:02:51.6]} 7. Bd3
{[%clk 0:02:59.7]} 7... Nh6 {[%clk 0:02:51.3]} 8. Be3 {[%clk 0:02:59.4]} 8...
Bg4 {[%clk 0:02:28.2]} 9. h3 {[%clk 0:02:59.1]} 9... Bxf3 {[%clk 0:02:28.5]} 10.
Qxf3 {[%clk 0:03:00]} 10... Nf5 {[%clk 0:02:27.4]} 11. Bf2 {[%clk 0:02:56.6]}
11... Ne6 {[%clk 0:02:23.7]} 12. Ne2 {[%clk 0:02:54]} 12... Qb6 {[%clk
0:02:12.5]} 13. O-O {[%clk 0:02:34]} 13... Nexd4 {[%clk 0:01:31.7]} 14. Nxd4
{[%clk 0:02:34]} 14... Nxd4 {[%clk 0:01:32.6]} 15. Qd1 {[%clk 0:02:34.6]} 15...
c5 {[%clk 0:01:30.6]} 16. c3 {[%clk 0:02:34.9]} 16... Nc6 {[%clk 0:01:27.4]} 17.
b4 {[%clk 0:02:34.9]} 17... e6 {[%clk 0:01:25.1]} 18. Rb1 {[%clk 0:02:31.4]}
18... Be7 {[%clk 0:01:09.2]} 19. bxc5 {[%clk 0:02:30.3]} 19... Qc7 {[%clk
0:01:08.7]} 20. Qb3 {[%clk 0:02:27.6]} 20... Rb8 {[%clk 0:01:07.3]} 21. c4
{[%clk 0:02:23]} 21... d4 {[%clk 0:01:02.8]} 22. Qb5 {[%clk 0:02:12.6]} 22...
O-O {[%clk 0:00:55.8]} 23. Be4 {[%clk 0:02:08.5]} 23... Rfd8 {[%clk 0:00:49.5]}
24. Rfd1 {[%clk 0:02:04.7]} 24... Na5 {[%clk 0:00:39.9]} 25. Rxd4 {[%clk
0:01:58.5]} 25... a6 {[%clk 0:00:16.7]} 26. Qb6 {[%clk 0:01:51.1]} 26... Qxb6
{[%clk 0:00:07.1]} 27. cxb6 {[%clk 0:01:52]} 27... Rxd4 {[%clk 0:00:06.3]} 28.
Bxd4 {[%clk 0:01:52]} 28... Nxc4 {[%clk 0:00:06.5]} 29. Rc1 {[%clk 0:01:49.7]}
29... Na5 {[%clk 0:00:03]} 30. Rc7 {[%clk 0:01:44.3]} 30... Bd8 {[%clk
0:00:03.6]} 31. Rd7 {[%clk 0:01:44.6]} 31... Kf8 {[%clk 0:00:04.1]} 32. Bc5+
{[%clk 0:01:43.3]} 32... Ke8 {[%clk 0:00:04.2]} 33. Rd4 {[%clk 0:01:43]} 33...
Nc6 {[%clk 0:00:03]} 34. Rd6 {[%clk 0:01:40.8]} 34... Na5 {[%clk 0:00:02.5]} 35.
Bb4 {[%clk 0:01:36.2]} 35... Nc4 {[%clk 0:00:02.5]} 36. Rd3 {[%clk 0:01:31.5]}
36... Nxb6 {[%clk 0:00:03]} 37. Bd6 {[%clk 0:01:29.7]} 37... Rc8 {[%clk
0:00:02.6]} 38. Bxb7 {[%clk 0:01:30]} 38... Rc1+ {[%clk 0:00:03.3]} 39. Kh2
{[%clk 0:01:29.9]} 39... a5 {[%clk 0:00:02.8]} 40. Ba6 {[%clk 0:01:27.7]} 40...
Kd7 {[%clk 0:00:02]} 41. Ba3+ {[%clk 0:01:26.3]} 41... Kc6 {[%clk 0:00:02.4]}
42. Bxc1 {[%clk 0:01:26.9]} 42... Nd5 {[%clk 0:00:02.9]} 43. Bc4 {[%clk
0:01:26.3]} 43... Kc5 {[%clk 0:00:03.8]} 44. Bxd5 {[%clk 0:01:26.4]} 44... exd5
{[%clk 0:00:04.7]} 45. Be3+ {[%clk 0:01:26.9]} 45... Kc4 {[%clk 0:00:05.6]} 46.
Rd4+ {[%clk 0:01:27.2]} 46... Kc3 {[%clk 0:00:06.5]} 47. Rxd5 {[%clk 0:01:27.3]}
47... Be7 {[%clk 0:00:07.2]} 48. Rd7 {[%clk 0:01:27.4]} 48... Ba3 {[%clk
0:00:07]} 49. Rxf7 {[%clk 0:01:28.3]} 49... Kb2 {[%clk 0:00:07.4]} 50. e6 {[%clk
0:01:28.8]} 50... Kxa2 {[%clk 0:00:07.5]} 51. e7 {[%clk 0:01:29.4]} 51... Bxe7
{[%clk 0:00:08]} 52. Rxe7 {[%clk 0:01:30.3]} 52... a4 {[%clk 0:00:08.9]} 53. Re6
{[%clk 0:01:30.3]} 53... a3 {[%clk 0:00:09.4]} 54. Rxg6 {[%clk 0:01:31]} 54...
Kb3 {[%clk 0:00:10.1]} 55. f5 {[%clk 0:01:31.5]} 55... a2 {[%clk 0:00:10.3]} 56.
Ra6 {[%clk 0:01:31.2]} 56... h4 {[%clk 0:00:10.9]} 57. f6 {[%clk 0:01:30.7]}
57... Kb2 {[%clk 0:00:07.9]} 58. Bd4+ {[%clk 0:01:30.6]} 58... Kb1 {[%clk
0:00:06.8]} 59. f7 {[%clk 0:01:30.6]} 59... Kc2 {[%clk 0:00:07.2]} 60. f8=Q
{[%clk 0:01:30.8]} 60... a1=Q {[%clk 0:00:06.8]} 61. Qf2+ {[%clk 0:01:30.5]}
61... Kb3 {[%clk 0:00:05]} 62. Qe3+ {[%clk 0:01:29.9]} 62... Qc3 {[%clk
0:00:04.2]} 63. Qxc3# {[%clk 0:01:24.4]} 1-0

[Event "Late-Titled-Tuesday-Blitz-September-12-2023"]
[Site "Chess.com"]
[Date "2023.09.12"]
[Round "5"]
[White "RIPOL"]
[Black "FredddieCroderg"]
[Result "1-0"]
[WhiteElo "2463"]
[BlackElo "2328"]
[TimeControl "180+1"]
[EndTime "14:53:01 PDT"]
[Termination "RIPOL won on time"]

1. d4 {[%clk 0:02:58.6]} 1... d6 {[%clk 0:02:59.3]} 2. e4 {[%clk 0:02:57.6]}
2... e5 {[%clk 0:02:58.3]} 3. Ne2 {[%clk 0:02:51.6]} 3... exd4 {[%clk 0:02:58]}
4. Nxd4 {[%clk 0:02:50.2]} 4... Nf6 {[%clk 0:02:58.5]} 5. Nc3 {[%clk 0:02:49.6]}
5... Be7 {[%clk 0:02:58.9]} 6. Be2 {[%clk 0:02:47.7]} 6... O-O {[%clk
0:02:59.4]} 7. O-O {[%clk 0:02:43.3]} 7... Re8 {[%clk 0:02:59.6]} 8. Bf3 {[%clk
0:02:42.5]} 8... Bf8 {[%clk 0:03:00]} 9. Nf5 {[%clk 0:02:26.9]} 9... d5 {[%clk
0:02:46.7]} 10. Bg5 {[%clk 0:02:01.5]} 10... Bxf5 {[%clk 0:02:27.6]} 11. exf5
{[%clk 0:01:58.9]} 11... c6 {[%clk 0:02:26.9]} 12. g4 {[%clk 0:01:44.8]} 12...
Nbd7 {[%clk 0:02:26.8]} 13. h3 {[%clk 0:01:42.5]} 13... Qb6 {[%clk 0:02:23.2]}
14. b3 {[%clk 0:01:38.1]} 14... Bb4 {[%clk 0:02:09.6]} 15. Ne2 {[%clk
0:01:31.2]} 15... Qc7 {[%clk 0:02:06.1]} 16. Bf4 {[%clk 0:01:27.8]} 16... Bd6
{[%clk 0:01:53.3]} 17. Qd2 {[%clk 0:01:13.3]} 17... Ne4 {[%clk 0:01:49.5]} 18.
Bxe4 {[%clk 0:01:10.6]} 18... Rxe4 {[%clk 0:01:50.4]} 19. Bxd6 {[%clk
0:01:03.5]} 19... Qxd6 {[%clk 0:01:51.3]} 20. Ng3 {[%clk 0:01:03.3]} 20... Re7
{[%clk 0:01:42.9]} 21. Rad1 {[%clk 0:00:56.5]} 21... Qc7 {[%clk 0:01:30.3]} 22.
Kg2 {[%clk 0:00:43.1]} 22... Rae8 {[%clk 0:01:29.8]} 23. Nh5 {[%clk 0:00:37.4]}
23... g6 {[%clk 0:00:52.7]} 24. Ng3 {[%clk 0:00:34.8]} 24... Qe5 {[%clk
0:00:49.1]} 25. c4 {[%clk 0:00:31]} 25... dxc4 {[%clk 0:00:44.9]} 26. bxc4
{[%clk 0:00:30.8]} 26... Nb6 {[%clk 0:00:37.6]} 27. Rfe1 {[%clk 0:00:29.7]}
27... Qc5 {[%clk 0:00:17.8]} 28. Rxe7 {[%clk 0:00:28.5]} 28... Qxe7 {[%clk
0:00:17.5]} 29. g5 {[%clk 0:00:22.3]} 29... Nxc4 {[%clk 0:00:15.6]} 30. Qc2
{[%clk 0:00:21.7]} 30... b5 {[%clk 0:00:09.2]} 31. f6 {[%clk 0:00:20.9]} 31...
Qe6 {[%clk 0:00:08.7]} 32. Qe4 {[%clk 0:00:17.1]} 32... Qxe4+ {[%clk 0:00:06]}
33. Nxe4 {[%clk 0:00:17.1]} 33... a5 {[%clk 0:00:01.9]} 34. Nc5 {[%clk
0:00:14.5]} 34... a4 {[%clk 0:00:01.9]} 35. Rd7 {[%clk 0:00:12.6]} 1-0

[Event "Late-Titled-Tuesday-Blitz-September-12-2023"]
[Site "Chess.com"]
[Date "2023.09.12"]
[Round "5"]
[White "PabloZarnicki"]
[Black "GianmarcoVaR"]
[Result "1-0"]
[WhiteElo "2506"]
[BlackElo "2642"]
[TimeControl "180+1"]
[EndTime "14:53:02 PDT"]
[Termination "PabloZarnicki won by checkmate"]

1. e4 {[%clk 0:03:00.1]} 1... c5 {[%clk 0:02:56.1]} 2. Nf3 {[%clk 0:02:59.9]}
2... d6 {[%clk 0:02:56.1]} 3. Bb5+ {[%clk 0:03:00.3]} 3... Nd7 {[%clk
0:02:51.2]} 4. d4 {[%clk 0:02:59.9]} 4... cxd4 {[%clk 0:02:46.9]} 5. Qxd4 {[%clk
0:03:00.8]} 5... a6 {[%clk 0:02:44.9]} 6. Bxd7+ {[%clk 0:03:00.4]} 6... Bxd7
{[%clk 0:02:45.3]} 7. Nc3 {[%clk 0:03:00.5]} 7... e5 {[%clk 0:02:39.3]} 8. Qd3
{[%clk 0:03:00.6]} 8... h6 {[%clk 0:02:24.8]} 9. a4 {[%clk 0:02:59.2]} 9... Nf6
{[%clk 0:02:21.2]} 10. O-O {[%clk 0:02:58.2]} 10... Rc8 {[%clk 0:02:16.6]} 11.
b3 {[%clk 0:02:49.5]} 11... Be7 {[%clk 0:02:12]} 12. Nd2 {[%clk 0:02:45.9]}
12... Qc7 {[%clk 0:02:03.1]} 13. Bb2 {[%clk 0:02:45]} 13... O-O {[%clk
0:01:58.6]} 14. Nc4 {[%clk 0:02:43.2]} 14... Rfd8 {[%clk 0:01:39.2]} 15. Ne3
{[%clk 0:02:39.7]} 15... Bf8 {[%clk 0:01:17.4]} 16. Rad1 {[%clk 0:02:33.3]}
16... b5 {[%clk 0:01:15.4]} 17. axb5 {[%clk 0:02:32.7]} 17... axb5 {[%clk
0:01:16.3]} 18. Rd2 {[%clk 0:02:26.9]} 18... b4 {[%clk 0:01:12.5]} 19. Ncd5
{[%clk 0:02:27.1]} 19... Nxd5 {[%clk 0:01:12.7]} 20. Nxd5 {[%clk 0:02:28]} 20...
Qb7 {[%clk 0:01:12.4]} 21. Qg3 {[%clk 0:02:12.9]} 21... Be6 {[%clk 0:00:59.9]}
22. f4 {[%clk 0:02:05.1]} 22... Bxd5 {[%clk 0:00:58.4]} 23. exd5 {[%clk
0:02:03.1]} 23... f6 {[%clk 0:00:58.9]} 24. h3 {[%clk 0:01:50.6]} 24... Kh8
{[%clk 0:00:19.6]} 25. Kh2 {[%clk 0:01:46.9]} 25... Rc5 {[%clk 0:00:19.4]} 26.
Qd3 {[%clk 0:01:23.3]} 26... Rdc8 {[%clk 0:00:18.7]} 27. Rf3 {[%clk 0:01:06.4]}
27... Qd7 {[%clk 0:00:06.4]} 28. Rff2 {[%clk 0:01:00.3]} 28... Re8 {[%clk
0:00:04.7]} 29. Qe4 {[%clk 0:00:55.8]} 29... Be7 {[%clk 0:00:03.5]} 30. Qxb4
{[%clk 0:00:50.1]} 30... Rec8 {[%clk 0:00:03.4]} 31. c4 {[%clk 0:00:42.9]} 31...
Qc7 {[%clk 0:00:03.1]} 32. Qc3 {[%clk 0:00:40.4]} 32... Qb7 {[%clk 0:00:03]} 33.
Qd3 {[%clk 0:00:37.7]} 33... Rb8 {[%clk 0:00:02.8]} 34. Rf3 {[%clk 0:00:34.6]}
34... Rcc8 {[%clk 0:00:02.4]} 35. Qg6 {[%clk 0:00:33.1]} 35... Bf8 {[%clk
0:00:02.6]} 36. Rdf2 {[%clk 0:00:31.2]} 36... Qd7 {[%clk 0:00:02.7]} 37. Rg3
{[%clk 0:00:27.5]} 37... Re8 {[%clk 0:00:02.5]} 38. fxe5 {[%clk 0:00:24.6]}
38... dxe5 {[%clk 0:00:02.6]} 39. Rxf6 {[%clk 0:00:24.6]} 39... Be7 {[%clk
0:00:01.4]} 40. Qxg7# {[%clk 0:00:23.2]} 1-0

[Event "Late-Titled-Tuesday-Blitz-September-12-2023"]
[Site "Chess.com"]
[Date "2023.09.12"]
[Round "5"]
[White "JoseRemolar"]
[Black "PapaieDudu"]
[Result "0-1"]
[WhiteElo "2465"]
[BlackElo "2306"]
[TimeControl "180+1"]
[EndTime "14:53:04 PDT"]
[Termination "PapaieDudu won by checkmate"]

1. e4 {[%clk 0:03:00.6]} 1... c5 {[%clk 0:02:58.3]} 2. Nf3 {[%clk 0:03:00.1]}
2... d6 {[%clk 0:02:58.7]} 3. d4 {[%clk 0:02:59.6]} 3... cxd4 {[%clk 0:02:59.3]}
4. Nxd4 {[%clk 0:03:00.5]} 4... Nf6 {[%clk 0:02:59.1]} 5. Nc3 {[%clk 0:02:59.8]}
5... a6 {[%clk 0:02:59.7]} 6. Bg5 {[%clk 0:03:00]} 6... e6 {[%clk 0:02:59.5]} 7.
f4 {[%clk 0:03:00.1]} 7... Nbd7 {[%clk 0:03:00.4]} 8. Qf3 {[%clk 0:02:58.7]}
8... Qc7 {[%clk 0:03:01]} 9. O-O-O {[%clk 0:02:58.7]} 9... b5 {[%clk 0:03:00.4]}
10. e5 {[%clk 0:02:15.9]} 10... Bb7 {[%clk 0:02:57.3]} 11. Qg3 {[%clk
0:02:15.9]} 11... b4 {[%clk 0:02:27.1]} 12. exf6 {[%clk 0:01:31]} 12... gxf6
{[%clk 0:01:48.7]} 13. f5 {[%clk 0:01:25]} 13... e5 {[%clk 0:01:44.8]} 14. Ne6
{[%clk 0:01:17.3]} 14... fxe6 {[%clk 0:01:42.5]} 15. fxe6 {[%clk 0:01:18.2]}
15... Nc5 {[%clk 0:01:40.6]} 16. Bxf6 {[%clk 0:01:12.2]} 16... Bh6+ {[%clk
0:01:29.8]} 17. Kb1 {[%clk 0:01:10.9]} 17... Rf8 {[%clk 0:01:25.1]} 18. Nb5
{[%clk 0:00:59.1]} 18... axb5 {[%clk 0:01:20.4]} 19. Bxb5+ {[%clk 0:01:00]}
19... Bc6 {[%clk 0:01:20.5]} 20. Qf3 {[%clk 0:00:59.5]} 20... Rxf6 {[%clk
0:00:32.1]} 21. Qxf6 {[%clk 0:00:25.3]} 21... Bxb5 {[%clk 0:00:15.5]} 22. Qxh6
{[%clk 0:00:24.3]} 22... O-O-O {[%clk 0:00:12.7]} 23. Qh3 {[%clk 0:00:17.2]}
23... Re8 {[%clk 0:00:11.9]} 24. e7+ {[%clk 0:00:15.3]} 24... Kb7 {[%clk
0:00:11.6]} 25. Qxh7 {[%clk 0:00:15.3]} 25... Rxe7 {[%clk 0:00:12.5]} 26. Qh6
{[%clk 0:00:15.8]} 26... Re6 {[%clk 0:00:09]} 27. Qe3 {[%clk 0:00:15.2]} 27...
d5 {[%clk 0:00:08]} 28. h4 {[%clk 0:00:11]} 28... d4 {[%clk 0:00:06.4]} 29. Qg3
{[%clk 0:00:09.2]} 29... Ne4 {[%clk 0:00:05.7]} 30. Qf3 {[%clk 0:00:07.9]} 30...
Bc6 {[%clk 0:00:05.7]} 31. Qf5 {[%clk 0:00:08.2]} 31... Bd5 {[%clk 0:00:05.7]}
32. Rh3 {[%clk 0:00:07.4]} 32... Qc4 {[%clk 0:00:05.5]} 33. Rhd3 {[%clk
0:00:05.8]} 33... Qxa2+ {[%clk 0:00:05]} 34. Kc1 {[%clk 0:00:06]} 34... Qa1#
{[%clk 0:00:05.9]} 0-1

[Event "Late-Titled-Tuesday-Blitz-September-12-2023"]
[Site "Chess.com"]
[Date "2023.09.12"]
[Round "5"]
[White "GarayevKanan"]
[Black "malakismayil"]
[Result "1/2-1/2"]
[WhiteElo "2714"]
[BlackElo "2514"]
[TimeControl "180+1"]
[EndTime "14:53:05 PDT"]
[Termination "Game drawn by repetition"]

1. d4 {[%clk 0:02:53.9]} 1... Nf6 {[%clk 0:02:59.4]} 2. c4 {[%clk 0:02:53.7]}
2... e6 {[%clk 0:02:59.3]} 3. g3 {[%clk 0:02:53.5]} 3... d5 {[%clk 0:02:59.6]}
4. Bg2 {[%clk 0:02:52.9]} 4... Be7 {[%clk 0:02:59.3]} 5. Nf3 {[%clk 0:02:52.9]}
5... O-O {[%clk 0:02:59.9]} 6. O-O {[%clk 0:02:52.5]} 6... dxc4 {[%clk
0:03:00.4]} 7. Qc2 {[%clk 0:02:39.8]} 7... a6 {[%clk 0:03:00.5]} 8. a4 {[%clk
0:02:37.6]} 8... Bd7 {[%clk 0:02:58.8]} 9. Qxc4 {[%clk 0:02:33.5]} 9... Bc6
{[%clk 0:02:58.7]} 10. Bg5 {[%clk 0:02:31.2]} 10... Nbd7 {[%clk 0:02:58.5]} 11.
Nc3 {[%clk 0:02:22.8]} 11... Nb6 {[%clk 0:02:57.5]} 12. Qd3 {[%clk 0:02:22.9]}
12... h6 {[%clk 0:02:54.7]} 13. Bf4 {[%clk 0:02:02.3]} 13... Nbd5 {[%clk
0:02:47.5]} 14. Ne5 {[%clk 0:01:58.3]} 14... Be8 {[%clk 0:02:34.2]} 15. Bd2
{[%clk 0:01:48.2]} 15... Rb8 {[%clk 0:02:15.1]} 16. Ne4 {[%clk 0:01:19.3]} 16...
Nxe4 {[%clk 0:02:02]} 17. Bxe4 {[%clk 0:01:20.2]} 17... b5 {[%clk 0:01:47.8]}
18. a5 {[%clk 0:01:08.5]} 18... Bd6 {[%clk 0:01:12.5]} 19. Rac1 {[%clk
0:01:00.8]} 19... c5 {[%clk 0:01:06.7]} 20. Rxc5 {[%clk 0:00:37]} 20... Bxc5
{[%clk 0:01:05.8]} 21. dxc5 {[%clk 0:00:37.9]} 21... Qc7 {[%clk 0:00:32.3]} 22.
Qd4 {[%clk 0:00:32.3]} 22... Rd8 {[%clk 0:00:24]} 23. Bd3 {[%clk 0:00:27.4]}
23... Nf6 {[%clk 0:00:16.3]} 24. Qe3 {[%clk 0:00:22.9]} 24... Rd5 {[%clk
0:00:16.4]} 25. Nf3 {[%clk 0:00:19.4]} 25... Qxc5 {[%clk 0:00:11.5]} 26. Qxc5
{[%clk 0:00:19.2]} 26... Rxc5 {[%clk 0:00:12.4]} 27. Bb4 {[%clk 0:00:19.8]}
27... Rc8 {[%clk 0:00:13]} 28. Bxf8 {[%clk 0:00:20]} 28... Kxf8 {[%clk
0:00:13.9]} 29. Ne5 {[%clk 0:00:15.4]} 29... Ke7 {[%clk 0:00:14.1]} 30. Rd1
{[%clk 0:00:14.9]} 30... Nd7 {[%clk 0:00:13]} 31. Nxd7 {[%clk 0:00:10.4]} 31...
Bxd7 {[%clk 0:00:13.9]} 32. Be4 {[%clk 0:00:11.1]} 32... Rc7 {[%clk 0:00:09.6]}
33. f4 {[%clk 0:00:10.7]} 33... Bc6 {[%clk 0:00:09.6]} 34. Rc1 {[%clk
0:00:09.9]} 34... Kd6 {[%clk 0:00:09.6]} 35. Rd1+ {[%clk 0:00:10.2]} 35... Ke7
{[%clk 0:00:09.8]} 36. Rc1 {[%clk 0:00:10.5]} 36... Kd6 {[%clk 0:00:09.3]} 37.
Rd1+ {[%clk 0:00:11.1]} 37... Ke7 {[%clk 0:00:06.4]} 1/2-1/2

[Event "Late-Titled-Tuesday-Blitz-September-12-2023"]
[Site "Chess.com"]
[Date "2023.09.12"]
[Round "5"]
[White "Aslanov_Umid"]
[Black "Roberz12"]
[Result "1-0"]
[WhiteElo "2564"]
[BlackElo "2427"]
[TimeControl "180+1"]
[EndTime "14:53:05 PDT"]
[Termination "Aslanov_Umid won on time"]

1. e4 {[%clk 0:03:00.9]} 1... e6 {[%clk 0:02:57.9]} 2. d4 {[%clk 0:03:00.5]}
2... d5 {[%clk 0:02:55.7]} 3. Nd2 {[%clk 0:03:00.9]} 3... c5 {[%clk 0:02:55.3]}
4. exd5 {[%clk 0:03:01]} 4... cxd4 {[%clk 0:02:54.5]} 5. Ngf3 {[%clk 0:03:01.9]}
5... Nf6 {[%clk 0:02:52.8]} 6. Nxd4 {[%clk 0:02:54.3]} 6... exd5 {[%clk
0:02:52.7]} 7. Bb5+ {[%clk 0:02:53.8]} 7... Bd7 {[%clk 0:02:52.7]} 8. Bxd7+
{[%clk 0:02:52.4]} 8... Nbxd7 {[%clk 0:02:53.6]} 9. O-O {[%clk 0:02:52.9]} 9...
Be7 {[%clk 0:02:53.8]} 10. Re1 {[%clk 0:02:46.5]} 10... O-O {[%clk 0:02:54.2]}
11. c3 {[%clk 0:02:47.2]} 11... Re8 {[%clk 0:02:53.7]} 12. Nf1 {[%clk 0:02:45]}
12... Bf8 {[%clk 0:02:50.7]} 13. Ng3 {[%clk 0:02:39.6]} 13... g6 {[%clk
0:02:47.5]} 14. Bg5 {[%clk 0:02:39.2]} 14... Qb6 {[%clk 0:02:47.1]} 15. Qc2
{[%clk 0:02:36.2]} 15... Rac8 {[%clk 0:02:43.9]} 16. h4 {[%clk 0:02:33.1]} 16...
h6 {[%clk 0:02:33.7]} 17. Be3 {[%clk 0:02:28.7]} 17... Ng4 {[%clk 0:02:32.4]}
18. Nf1 {[%clk 0:01:42.8]} 18... Nxe3 {[%clk 0:02:27.9]} 19. Nxe3 {[%clk
0:01:43.7]} 19... Bg7 {[%clk 0:02:26.4]} 20. Qd2 {[%clk 0:01:41.2]} 20... Nf6
{[%clk 0:02:24.3]} 21. f3 {[%clk 0:01:30.6]} 21... Qd6 {[%clk 0:02:16.2]} 22.
Qf2 {[%clk 0:01:28.3]} 22... a6 {[%clk 0:02:13.1]} 23. Rad1 {[%clk 0:01:28.7]}
23... h5 {[%clk 0:02:11]} 24. Nec2 {[%clk 0:01:24.1]} 24... Qf4 {[%clk
0:02:06.7]} 25. Ne2 {[%clk 0:01:19.6]} 25... Qa4 {[%clk 0:02:01]} 26. Nc1 {[%clk
0:00:59.8]} 26... Bh6 {[%clk 0:00:18.2]} 27. a3 {[%clk 0:00:50.4]} 27... Rxe1+
{[%clk 0:00:14.1]} 28. Rxe1 {[%clk 0:00:48.1]} 28... Re8 {[%clk 0:00:14.7]} 29.
Rxe8+ {[%clk 0:00:45.3]} 29... Qxe8 {[%clk 0:00:15.6]} 30. Nd3 {[%clk
0:00:41.7]} 30... Qb5 {[%clk 0:00:16.3]} 31. Qe2 {[%clk 0:00:37.2]} 31... a5
{[%clk 0:00:11.8]} 32. Nd4 {[%clk 0:00:37.7]} 32... Qc4 {[%clk 0:00:11]} 33. Kf2
{[%clk 0:00:33.5]} 33... b5 {[%clk 0:00:09.9]} 34. Ne5 {[%clk 0:00:29.5]} 34...
Qxe2+ {[%clk 0:00:09.8]} 35. Kxe2 {[%clk 0:00:30.4]} 35... Bc1 {[%clk 0:00:08]}
36. Nd3 {[%clk 0:00:30.9]} 36... Bh6 {[%clk 0:00:06.5]} 37. Nxb5 {[%clk
0:00:31.6]} 37... Nd7 {[%clk 0:00:05.9]} 38. Nc7 {[%clk 0:00:31.6]} 38... Nb6
{[%clk 0:00:05.5]} 39. b3 {[%clk 0:00:29]} 39... a4 {[%clk 0:00:03.5]} 40. bxa4
{[%clk 0:00:23.4]} 1-0